[Event "Early-Titled-Tuesday-Blitz-October-24-2023"]
[Site "Chess.com"]
[Date "2023.10.24"]
[Round "8"]
[White "Witik"]
[Black "CristianS27"]
[Result "1/2-1/2"]
[WhiteElo "2794"]
[BlackElo "2564"]
[TimeControl "180+1"]
[EndTime "9:27:48 PDT"]
[Termination "Game drawn by 50-move rule"]

1. e4 {[%clk 0:02:59.2]} 1... e5 {[%clk 0:02:59.4]} 2. Nf3 {[%clk 0:02:59]} 2...
Nc6 {[%clk 0:03:00]} 3. Bb5 {[%clk 0:02:58.8]} 3... a6 {[%clk 0:03:00.6]} 4. Ba4
{[%clk 0:02:58.8]} 4... Nf6 {[%clk 0:03:01.2]} 5. O-O {[%clk 0:02:58.4]} 5...
Nxe4 {[%clk 0:03:01.8]} 6. Re1 {[%clk 0:02:52.4]} 6... Nc5 {[%clk 0:03:01.5]} 7.
Bxc6 {[%clk 0:02:46.4]} 7... dxc6 {[%clk 0:03:02.4]} 8. Nxe5 {[%clk 0:02:39.4]}
8... Be7 {[%clk 0:03:02.6]} 9. d4 {[%clk 0:02:31.6]} 9... Ne6 {[%clk 0:03:03.1]}
10. c3 {[%clk 0:02:31.3]} 10... O-O {[%clk 0:03:03.7]} 11. Be3 {[%clk
0:02:26.5]} 11... f6 {[%clk 0:03:02.8]} 12. Nd3 {[%clk 0:02:19.8]} 12... Rf7
{[%clk 0:03:02.8]} 13. Nd2 {[%clk 0:02:17.9]} 13... Nf8 {[%clk 0:03:01.8]} 14.
Qf3 {[%clk 0:02:10.1]} 14... Qd5 {[%clk 0:02:56.9]} 15. Qg3 {[%clk 0:02:05.7]}
15... Bf5 {[%clk 0:02:37]} 16. Nf4 {[%clk 0:01:48.7]} 16... Qd7 {[%clk
0:02:37.5]} 17. Nb3 {[%clk 0:01:43.1]} 17... b6 {[%clk 0:02:35.8]} 18. h3 {[%clk
0:01:38.5]} 18... Bd6 {[%clk 0:02:35.6]} 19. Qf3 {[%clk 0:01:39]} 19... Ng6
{[%clk 0:02:29.6]} 20. Nxg6 {[%clk 0:01:34.1]} 20... Bxg6 {[%clk 0:02:30.5]} 21.
Bf4 {[%clk 0:01:30.4]} 21... a5 {[%clk 0:02:28.3]} 22. Nd2 {[%clk 0:01:28.5]}
22... Re8 {[%clk 0:02:11.3]} 23. Bxd6 {[%clk 0:01:22.1]} 23... cxd6 {[%clk
0:02:10.3]} 24. Nc4 {[%clk 0:01:20.7]} 24... Rxe1+ {[%clk 0:01:36.4]} 25. Rxe1
{[%clk 0:01:20]} 25... Qc7 {[%clk 0:01:37.3]} 26. Qg3 {[%clk 0:00:45.1]} 26...
Rd7 {[%clk 0:01:32.2]} 27. d5 {[%clk 0:00:34.5]} 27... c5 {[%clk 0:01:04.5]} 28.
Re6 {[%clk 0:00:25.9]} 28... Bf7 {[%clk 0:00:57.9]} 29. Rxd6 {[%clk 0:00:25.9]}
29... Rxd6 {[%clk 0:00:54.1]} 30. Qxd6 {[%clk 0:00:22.5]} 30... Qxd6 {[%clk
0:00:54.4]} 31. Nxd6 {[%clk 0:00:23.4]} 31... Bxd5 {[%clk 0:00:54.6]} 32. a3
{[%clk 0:00:14.8]} 32... Be6 {[%clk 0:00:50.4]} 33. f4 {[%clk 0:00:06.6]} 33...
Kf8 {[%clk 0:00:50.3]} 34. Kf2 {[%clk 0:00:07.3]} 34... Ke7 {[%clk 0:00:50.5]}
35. Ne4 {[%clk 0:00:07.2]} 35... Bd5 {[%clk 0:00:48.5]} 36. Nd2 {[%clk
0:00:06.1]} 36... g5 {[%clk 0:00:45.3]} 37. g3 {[%clk 0:00:06.1]} 37... Ke6
{[%clk 0:00:44.5]} 38. Ke3 {[%clk 0:00:05.6]} 38... b5 {[%clk 0:00:43.5]} 39. b4
{[%clk 0:00:04.2]} 39... cxb4 {[%clk 0:00:38.3]} 40. cxb4 {[%clk 0:00:04.3]}
40... axb4 {[%clk 0:00:38.7]} 41. axb4 {[%clk 0:00:05.2]} 41... Bg2 {[%clk
0:00:32.3]} 42. fxg5 {[%clk 0:00:02]} 42... fxg5 {[%clk 0:00:30.9]} 43. h4
{[%clk 0:00:02.3]} 43... gxh4 {[%clk 0:00:31.8]} 44. gxh4 {[%clk 0:00:02.7]}
44... Kf5 {[%clk 0:00:32.5]} 45. Nb3 {[%clk 0:00:01.8]} 45... Kg4 {[%clk
0:00:31.1]} 46. Nd4 {[%clk 0:00:02]} 46... Bf1 {[%clk 0:00:31.1]} 47. h5 {[%clk
0:00:02]} 47... Kxh5 {[%clk 0:00:30.9]} 48. Kf4 {[%clk 0:00:02.7]} 48... Kh4
{[%clk 0:00:30]} 49. Nf3+ {[%clk 0:00:02.5]} 49... Kh3 {[%clk 0:00:28.1]} 50.
Ng5+ {[%clk 0:00:02.5]} 50... Kh4 {[%clk 0:00:27.6]} 51. Nxh7 {[%clk 0:00:03.4]}
51... Kh5 {[%clk 0:00:27.9]} 52. Ke5 {[%clk 0:00:03.7]} 52... Kg6 {[%clk
0:00:26]} 53. Nf6 {[%clk 0:00:03.6]} 53... Kf7 {[%clk 0:00:26.9]} 54. Ne4 {[%clk
0:00:03]} 54... Ke7 {[%clk 0:00:26.2]} 55. Nc3 {[%clk 0:00:03.4]} 55... Kd7
{[%clk 0:00:25.8]} 56. Kd4 {[%clk 0:00:03.4]} 56... Kc6 {[%clk 0:00:25.5]} 57.
Nd5 {[%clk 0:00:03.7]} 57... Bg2 {[%clk 0:00:22.1]} 58. Ne3 {[%clk 0:00:03.4]}
58... Bf3 {[%clk 0:00:21]} 59. Ke5 {[%clk 0:00:04]} 59... Be2 {[%clk 0:00:20.4]}
60. Nf5 {[%clk 0:00:04.5]} 60... Bf1 {[%clk 0:00:19.4]} 61. Nd4+ {[%clk
0:00:05.1]} 61... Kb6 {[%clk 0:00:19.2]} 62. Kd6 {[%clk 0:00:05.7]} 62... Bd3
{[%clk 0:00:18.4]} 63. Ne6 {[%clk 0:00:06.3]} 63... Bf1 {[%clk 0:00:18]} 64. Nc5
{[%clk 0:00:06.9]} 64... Bc4 {[%clk 0:00:17.8]} 65. Nd7+ {[%clk 0:00:07.2]}
65... Ka6 {[%clk 0:00:17]} 66. Kc5 {[%clk 0:00:07.8]} 66... Bf1 {[%clk
0:00:15.7]} 67. Nb8+ {[%clk 0:00:07.8]} 67... Kb7 {[%clk 0:00:15.8]} 68. Nc6
{[%clk 0:00:08.7]} 68... Ka6 {[%clk 0:00:13.9]} 69. Nd4 {[%clk 0:00:08.8]} 69...
Bc4 {[%clk 0:00:13.6]} 70. Kc6 {[%clk 0:00:09.3]} 70... Bd3 {[%clk 0:00:13.1]}
71. Kc7 {[%clk 0:00:09.9]} 71... Bf1 {[%clk 0:00:12.9]} 72. Nf5 {[%clk
0:00:10.1]} 72... Bd3 {[%clk 0:00:12.5]} 73. Nd6 {[%clk 0:00:10.8]} 73... Bf1
{[%clk 0:00:12.9]} 74. Nb7 {[%clk 0:00:11.3]} 74... Be2 {[%clk 0:00:12.4]} 75.
Nc5+ {[%clk 0:00:11.5]} 75... Ka7 {[%clk 0:00:12.9]} 76. Nd7 {[%clk 0:00:11.5]}
76... Ka6 {[%clk 0:00:12.8]} 77. Nf6 {[%clk 0:00:12.1]} 77... Bf1 {[%clk
0:00:12.2]} 78. Nd5 {[%clk 0:00:12.6]} 78... Bc4 {[%clk 0:00:12]} 79. Nf6 {[%clk
0:00:12.1]} 79... Bf1 {[%clk 0:00:12]} 80. Nd7 {[%clk 0:00:12.7]} 80... Bc4
{[%clk 0:00:11.2]} 81. Kd6 {[%clk 0:00:12.5]} 81... Bf1 {[%clk 0:00:09.5]} 82.
Kc5 {[%clk 0:00:12.9]} 82... Be2 {[%clk 0:00:09.2]} 83. Nf6 {[%clk 0:00:13.1]}
83... Bf1 {[%clk 0:00:09.3]} 84. Nd5 {[%clk 0:00:13.6]} 84... Be2 {[%clk
0:00:08.3]} 85. Nc7+ {[%clk 0:00:14.3]} 85... Ka7 {[%clk 0:00:07]} 86. Ne6
{[%clk 0:00:10.8]} 86... Ka6 {[%clk 0:00:06.2]} 87. Nd4 {[%clk 0:00:11.7]} 87...
Bc4 {[%clk 0:00:06]} 88. Kd6 {[%clk 0:00:12.3]} 88... Bd3 {[%clk 0:00:05.5]} 89.
Kc7 {[%clk 0:00:12.1]} 89... Bc4 {[%clk 0:00:05.3]} 90. Nc6 {[%clk 0:00:12.3]}
90... Bf1 {[%clk 0:00:05.2]} 91. Na5 {[%clk 0:00:12.7]} 91... Be2 {[%clk
0:00:04.6]} 92. Nb7 {[%clk 0:00:13.1]} 92... Bf1 {[%clk 0:00:04.4]} 93. Nc5+
{[%clk 0:00:13]} 93... Ka7 {[%clk 0:00:04.4]} 94. Kc6 {[%clk 0:00:13.1]} 94...
Bc4 {[%clk 0:00:04.7]} 95. Nd7 {[%clk 0:00:12.8]} 95... Bf1 {[%clk 0:00:04.2]}
96. Ne5 {[%clk 0:00:13.2]} 96... Be2 {[%clk 0:00:04.1]} 97. Kc5 {[%clk
0:00:14.1]} 97... Ka6 {[%clk 0:00:03.7]} 98. Nf7 {[%clk 0:00:14.2]} 98... Bf1
{[%clk 0:00:04]} 99. Nd8 {[%clk 0:00:14.8]} 99... Be2 {[%clk 0:00:04.1]} 100.
Ne6 {[%clk 0:00:15.3]} 100... Bf1 {[%clk 0:00:04.2]} 101. Nc7+ {[%clk
0:00:15.9]} 1/2-1/2

[Event "Early-Titled-Tuesday-Blitz-October-24-2023"]
[Site "Chess.com"]
[Date "2023.10.24"]
[Round "8"]
[White "Ducke13"]
[Black "Adnan_Habib"]
[Result "1/2-1/2"]
[WhiteElo "2441"]
[BlackElo "2334"]
[TimeControl "180+1"]
[EndTime "9:28:10 PDT"]
[Termination "Game drawn by stalemate"]

1. d4 {[%clk 0:03:00.9]} 1... Nf6 {[%clk 0:02:59.4]} 2. g3 {[%clk 0:03:01.4]}
2... g6 {[%clk 0:02:59.5]} 3. Bg2 {[%clk 0:03:01.9]} 3... Bg7 {[%clk 0:03:00.1]}
4. e4 {[%clk 0:03:02.6]} 4... d6 {[%clk 0:02:59.3]} 5. Ne2 {[%clk 0:03:03.1]}
5... O-O {[%clk 0:02:58.7]} 6. O-O {[%clk 0:03:03.8]} 6... c5 {[%clk 0:02:59.2]}
7. dxc5 {[%clk 0:03:03.8]} 7... dxc5 {[%clk 0:02:59.3]} 8. e5 {[%clk 0:03:04.7]}
8... Nfd7 {[%clk 0:02:57.3]} 9. f4 {[%clk 0:03:04.3]} 9... Nb6 {[%clk
0:02:49.8]} 10. Nbc3 {[%clk 0:03:04.8]} 10... Nc6 {[%clk 0:02:49.4]} 11. Be3
{[%clk 0:03:03.9]} 11... Nc4 {[%clk 0:02:42.6]} 12. Bxc5 {[%clk 0:03:03]} 12...
Nxb2 {[%clk 0:02:42.2]} 13. Qd5 {[%clk 0:03:02.8]} 13... Qa5 {[%clk 0:02:20.8]}
14. Bxe7 {[%clk 0:02:44.8]} 14... Qxd5 {[%clk 0:02:19.4]} 15. Nxd5 {[%clk
0:02:45]} 15... Nxe7 {[%clk 0:01:58.7]} 16. Nxe7+ {[%clk 0:02:44.3]} 16... Kh8
{[%clk 0:01:59]} 17. Nd4 {[%clk 0:02:31.5]} 17... Nc4 {[%clk 0:01:55.5]} 18.
Nxc8 {[%clk 0:02:22]} 18... Raxc8 {[%clk 0:01:55]} 19. Bxb7 {[%clk 0:02:22]}
19... Rc7 {[%clk 0:01:52.1]} 20. Ba6 {[%clk 0:02:18.4]} 20... Rd8 {[%clk
0:01:44.8]} 21. c3 {[%clk 0:02:09.3]} 21... Nd2 {[%clk 0:01:39.4]} 22. Rfc1
{[%clk 0:02:00.5]} 22... Ne4 {[%clk 0:01:38.8]} 23. Ne2 {[%clk 0:01:59.2]} 23...
f6 {[%clk 0:01:34.6]} 24. exf6 {[%clk 0:01:56.7]} 24... Bxf6 {[%clk 0:01:34.4]}
25. Rc2 {[%clk 0:01:47]} 25... Nxc3 {[%clk 0:01:29.1]} 26. Rac1 {[%clk
0:01:37.8]} 26... Nxe2+ {[%clk 0:01:17.5]} 27. Bxe2 {[%clk 0:01:38.7]} 27...
Rxc2 {[%clk 0:01:09.4]} 28. Rxc2 {[%clk 0:01:39.6]} 28... Kg7 {[%clk 0:01:08.9]}
29. Kg2 {[%clk 0:01:33.6]} 29... Rd7 {[%clk 0:01:04.3]} 30. Kf3 {[%clk
0:01:31.9]} 30... Re7 {[%clk 0:01:01.1]} 31. Bd3 {[%clk 0:01:23.6]} 31... Bd4
{[%clk 0:01:00.6]} 32. Be4 {[%clk 0:01:24.1]} 32... Bb6 {[%clk 0:00:57.3]} 33.
g4 {[%clk 0:01:14]} 33... Kf6 {[%clk 0:00:47.2]} 34. h4 {[%clk 0:01:11.5]} 34...
Ke6 {[%clk 0:00:43.6]} 35. Rd2 {[%clk 0:00:44]} 35... Rc7 {[%clk 0:00:26.3]} 36.
h5 {[%clk 0:00:39.3]} 36... gxh5 {[%clk 0:00:25.8]} 37. Bf5+ {[%clk 0:00:38]}
37... Kf6 {[%clk 0:00:20.4]} 38. Rd6+ {[%clk 0:00:37.1]} 38... Ke7 {[%clk
0:00:20.5]} 39. Re6+ {[%clk 0:00:35]} 39... Kf7 {[%clk 0:00:20.5]} 40. gxh5
{[%clk 0:00:30.2]} 40... Rc3+ {[%clk 0:00:16.9]} 41. Kg4 {[%clk 0:00:28.3]}
41... Rc1 {[%clk 0:00:17.3]} 42. Rh6 {[%clk 0:00:22.5]} 42... Rg1+ {[%clk
0:00:17]} 43. Kf3 {[%clk 0:00:21.2]} 43... Rf1+ {[%clk 0:00:16.9]} 44. Ke4
{[%clk 0:00:20.3]} 44... Re1+ {[%clk 0:00:16]} 45. Kd5 {[%clk 0:00:19.7]} 45...
Be3 {[%clk 0:00:14.3]} 46. Rxh7+ {[%clk 0:00:10.5]} 46... Kf6 {[%clk 0:00:14.3]}
47. Bg6 {[%clk 0:00:07.6]} 47... Bxf4 {[%clk 0:00:13.2]} 48. Rf7+ {[%clk
0:00:08.2]} 48... Kg5 {[%clk 0:00:13.1]} 49. Rf5+ {[%clk 0:00:08.5]} 49... Kg4
{[%clk 0:00:13.4]} 50. Rf7 {[%clk 0:00:05.7]} 50... Rd1+ {[%clk 0:00:13.6]} 51.
Kc4 {[%clk 0:00:04.7]} 51... Be3 {[%clk 0:00:13.9]} 52. Re7 {[%clk 0:00:02.3]}
52... Bb6 {[%clk 0:00:13.4]} 53. Re4+ {[%clk 0:00:02.9]} 53... Kg5 {[%clk
0:00:13.2]} 54. Re7 {[%clk 0:00:03.5]} 54... Kh6 {[%clk 0:00:12.4]} 55. Re6
{[%clk 0:00:03.5]} 55... Kg5 {[%clk 0:00:12.1]} 56. Kb3 {[%clk 0:00:03.5]} 56...
Rf1 {[%clk 0:00:11.4]} 57. a4 {[%clk 0:00:03.2]} 57... Rf3+ {[%clk 0:00:11.1]}
58. Kc4 {[%clk 0:00:03.7]} 58... Rf4+ {[%clk 0:00:11.5]} 59. Kb5 {[%clk
0:00:04.3]} 59... Rf6 {[%clk 0:00:08.4]} 60. Re5+ {[%clk 0:00:03.7]} 60... Kh6
{[%clk 0:00:08.3]} 61. a5 {[%clk 0:00:03.9]} 61... Bf2 {[%clk 0:00:07.7]} 62.
Re7 {[%clk 0:00:03.8]} 62... Kg5 {[%clk 0:00:06.9]} 63. Rb7 {[%clk 0:00:03.7]}
63... Kh6 {[%clk 0:00:06.1]} 64. a6 {[%clk 0:00:04.2]} 64... Kg5 {[%clk
0:00:06.2]} 65. Rh7 {[%clk 0:00:04.2]} 65... Kg4 {[%clk 0:00:05.2]} 66. Rd7
{[%clk 0:00:04.3]} 66... Kg5 {[%clk 0:00:05.4]} 67. Rd5+ {[%clk 0:00:04.4]}
67... Kh6 {[%clk 0:00:05.8]} 68. Rd3 {[%clk 0:00:04.5]} 68... Kg5 {[%clk
0:00:06.2]} 69. Rd7 {[%clk 0:00:04.8]} 69... Kh6 {[%clk 0:00:06.5]} 70. Re7
{[%clk 0:00:05.3]} 70... Kg5 {[%clk 0:00:07.1]} 71. Rg7 {[%clk 0:00:05.3]} 71...
Kh6 {[%clk 0:00:07.3]} 72. Rg8 {[%clk 0:00:06]} 72... Kg5 {[%clk 0:00:06.9]} 73.
Rh8 {[%clk 0:00:04.7]} 73... Kf4 {[%clk 0:00:05.8]} 74. Bd3 {[%clk 0:00:05]}
74... Kg5 {[%clk 0:00:04.8]} 75. Be2 {[%clk 0:00:04.5]} 75... Bd4 {[%clk
0:00:03.8]} 76. Kc4 {[%clk 0:00:04.4]} 76... Be3 {[%clk 0:00:03.9]} 77. Kd3
{[%clk 0:00:04.3]} 77... Bb6 {[%clk 0:00:04]} 78. Ke4 {[%clk 0:00:04.2]} 78...
Bf2 {[%clk 0:00:04.4]} 79. Kd3 {[%clk 0:00:04.3]} 79... Bb6 {[%clk 0:00:05]} 80.
Kd2 {[%clk 0:00:04.8]} 80... Bf2 {[%clk 0:00:05.5]} 81. Kd1 {[%clk 0:00:05]}
81... Bb6 {[%clk 0:00:06.1]} 82. Rg8+ {[%clk 0:00:05]} 82... Kh6 {[%clk
0:00:05.6]} 83. Rh8+ {[%clk 0:00:05.3]} 83... Kg5 {[%clk 0:00:06]} 84. Rg8+
{[%clk 0:00:05.3]} 84... Kh6 {[%clk 0:00:06.5]} 85. Rg4 {[%clk 0:00:05.2]} 85...
Rd6+ {[%clk 0:00:05.5]} 86. Kc2 {[%clk 0:00:04.7]} 86... Rf6 {[%clk 0:00:06.1]}
87. Re4 {[%clk 0:00:04.7]} 87... Kg5 {[%clk 0:00:05.9]} 88. Kd3 {[%clk
0:00:04.8]} 88... Kh6 {[%clk 0:00:06.3]} 89. Re5 {[%clk 0:00:04.9]} 89... Rd6+
{[%clk 0:00:05.7]} 90. Ke4 {[%clk 0:00:05.1]} 90... Rf6 {[%clk 0:00:06.2]} 91.
Bf3 {[%clk 0:00:05.3]} 91... Bc7 {[%clk 0:00:04.4]} 92. Re7 {[%clk 0:00:05.1]}
92... Bb6 {[%clk 0:00:03.9]} 93. Re8 {[%clk 0:00:05.7]} 93... Kg5 {[%clk
0:00:04]} 94. Rg8+ {[%clk 0:00:05.8]} 94... Kh6 {[%clk 0:00:04.4]} 95. Rh8+
{[%clk 0:00:06.3]} 95... Kg5 {[%clk 0:00:04.7]} 96. Rh7 {[%clk 0:00:06.7]} 96...
Rf4+ {[%clk 0:00:04]} 97. Kd5 {[%clk 0:00:04.1]} 97... Rxf3 {[%clk 0:00:04.5]}
98. h6 {[%clk 0:00:04.6]} 98... Rf6 {[%clk 0:00:04.8]} 99. Rg7+ {[%clk
0:00:02.9]} 99... Kxh6 {[%clk 0:00:05.2]} 100. Re7 {[%clk 0:00:02]} 100... Kg5
{[%clk 0:00:05.5]} 101. Rd7 {[%clk 0:00:02.4]} 101... Rf5+ {[%clk 0:00:06]} 102.
Kc6 {[%clk 0:00:02.5]} 102... Rf6+ {[%clk 0:00:06.5]} 103. Kb7 {[%clk
0:00:02.7]} 103... Kg6 {[%clk 0:00:06.7]} 104. Ka8 {[%clk 0:00:02.6]} 104... Rf7
{[%clk 0:00:07.3]} 105. Rd6+ {[%clk 0:00:01.9]} 105... Kg7 {[%clk 0:00:07.5]}
106. Rc6 {[%clk 0:00:02.2]} 106... Kf8 {[%clk 0:00:07.2]} 107. Kb8 {[%clk
0:00:02.8]} 107... Kg7 {[%clk 0:00:07.2]} 108. Rc8 {[%clk 0:00:02.5]} 108... Bf2
{[%clk 0:00:07.7]} 109. Rc6 {[%clk 0:00:03.4]} 109... Bg3+ {[%clk 0:00:08.1]}
110. Kc8 {[%clk 0:00:03.3]} 110... Rf8+ {[%clk 0:00:07.9]} 111. Kb7 {[%clk
0:00:03.4]} 111... Rf7+ {[%clk 0:00:08.2]} 112. Ka8 {[%clk 0:00:03.9]} 112...
Bf4 {[%clk 0:00:07.9]} 113. Rd6 {[%clk 0:00:04.1]} 113... Bxd6 {[%clk
0:00:07.8]} 1/2-1/2

[Event "Early-Titled-Tuesday-Blitz-October-24-2023"]
[Site "Chess.com"]
[Date "2023.10.24"]
[Round "8"]
[White "dennisodessa"]
[Black "itsdsyr"]
[Result "1-0"]
[WhiteElo "2541"]
[BlackElo "2281"]
[TimeControl "180+1"]
[EndTime "9:29:12 PDT"]
[Termination "dennisodessa won by resignation"]

1. d4 {[%clk 0:03:00]} 1... Nf6 {[%clk 0:02:59.1]} 2. c4 {[%clk 0:03:00.9]} 2...
e6 {[%clk 0:02:59.4]} 3. Nc3 {[%clk 0:03:00.7]} 3... Bb4 {[%clk 0:02:59.4]} 4.
Qc2 {[%clk 0:03:01.4]} 4... O-O {[%clk 0:02:58.3]} 5. a3 {[%clk 0:03:00.6]} 5...
Bxc3+ {[%clk 0:02:58.3]} 6. Qxc3 {[%clk 0:03:01.5]} 6... d5 {[%clk 0:02:58.4]}
7. Bg5 {[%clk 0:02:59.2]} 7... a6 {[%clk 0:02:58.3]} 8. Nf3 {[%clk 0:02:54.3]}
8... h6 {[%clk 0:02:58.2]} 9. Bxf6 {[%clk 0:02:54.1]} 9... gxf6 {[%clk
0:02:52.4]} 10. e3 {[%clk 0:02:52.1]} 10... dxc4 {[%clk 0:02:49.9]} 11. a4
{[%clk 0:02:51.7]} 11... Nc6 {[%clk 0:02:45.6]} 12. Bxc4 {[%clk 0:02:51]} 12...
Qd6 {[%clk 0:02:41.6]} 13. O-O {[%clk 0:02:50.7]} 13... Qb4 {[%clk 0:02:41.6]}
14. Rfc1 {[%clk 0:02:45.9]} 14... Qxc3 {[%clk 0:02:41.2]} 15. bxc3 {[%clk
0:02:44.5]} 15... Bd7 {[%clk 0:02:37.5]} 16. Nd2 {[%clk 0:02:40.4]} 16... Na5
{[%clk 0:02:37.3]} 17. Be2 {[%clk 0:02:37.4]} 17... Kg7 {[%clk 0:02:19.1]} 18.
Rcb1 {[%clk 0:02:37]} 18... Rab8 {[%clk 0:02:17.8]} 19. Rb4 {[%clk 0:02:37.3]}
19... Nc6 {[%clk 0:02:15.2]} 20. Rb2 {[%clk 0:02:37.4]} 20... Na5 {[%clk
0:02:15.1]} 21. Nc4 {[%clk 0:02:25.1]} 21... Nxc4 {[%clk 0:02:09.8]} 22. Bxc4
{[%clk 0:02:26]} 22... Rfc8 {[%clk 0:02:10.3]} 23. Rab1 {[%clk 0:02:22.5]} 23...
c5 {[%clk 0:01:44.7]} 24. Bxa6 {[%clk 0:01:52.7]} 24... cxd4 {[%clk 0:01:43.3]}
25. cxd4 {[%clk 0:01:49.4]} 25... Bxa4 {[%clk 0:01:42.1]} 26. Rxb7 {[%clk
0:01:42]} 26... Rxb7 {[%clk 0:01:41]} 27. Bxb7 {[%clk 0:01:42.9]} 27... Rb8
{[%clk 0:01:33.9]} 28. h4 {[%clk 0:01:36.5]} 28... Bc6 {[%clk 0:01:32.4]} 29.
Bxc6 {[%clk 0:01:25.9]} 29... Rxb1+ {[%clk 0:01:33.3]} 30. Kh2 {[%clk
0:01:26.7]} 30... f5 {[%clk 0:01:31.7]} 31. g3 {[%clk 0:01:23.9]} 31... Rb2
{[%clk 0:01:30.9]} 32. Kg2 {[%clk 0:01:23.3]} 32... Kf6 {[%clk 0:01:31.8]} 33.
Bf3 {[%clk 0:01:23.6]} 33... Ke7 {[%clk 0:01:30.5]} 34. Bc6 {[%clk 0:01:23]}
34... f6 {[%clk 0:01:30.7]} 35. Ba8 {[%clk 0:01:20]} 35... Kd6 {[%clk
0:01:30.8]} 36. Bf3 {[%clk 0:01:16.2]} 36... e5 {[%clk 0:01:30.8]} 37. dxe5+
{[%clk 0:01:13.6]} 37... fxe5 {[%clk 0:01:31.7]} 38. Bh5 {[%clk 0:01:12.5]}
38... Ke6 {[%clk 0:01:23.3]} 39. g4 {[%clk 0:01:08.1]} 39... fxg4 {[%clk
0:01:14.4]} 40. Bxg4+ {[%clk 0:01:08.1]} 40... Kf6 {[%clk 0:01:15.3]} 41. Kg3
{[%clk 0:01:08.6]} 41... e4 {[%clk 0:01:08.7]} 42. Bh3 {[%clk 0:01:03.3]} 42...
Ke5 {[%clk 0:01:08.3]} 43. Bg2 {[%clk 0:00:58.5]} 43... Rb8 {[%clk 0:01:08.1]}
44. Bf1 {[%clk 0:00:56.1]} 44... Rf8 {[%clk 0:01:08.3]} 45. Be2 {[%clk 0:00:54]}
45... Kd5 {[%clk 0:01:01.5]} 46. Bd1 {[%clk 0:00:42.5]} 46... Kc4 {[%clk
0:00:57.4]} 47. f3 {[%clk 0:00:41]} 47... Kd3 {[%clk 0:00:53.4]} 48. fxe4 {[%clk
0:00:38.7]} 48... Kxe4 {[%clk 0:00:54.3]} 49. Bc2+ {[%clk 0:00:29.5]} 49... Kxe3
{[%clk 0:00:54]} 50. h5 {[%clk 0:00:30.4]} 50... Rf3+ {[%clk 0:00:50.3]} 51. Kg4
{[%clk 0:00:30.6]} 51... Rf4+ {[%clk 0:00:50.2]} 52. Kg3 {[%clk 0:00:27.5]}
52... Rc4 {[%clk 0:00:47.6]} 53. Bg6 {[%clk 0:00:27.4]} 53... Rc5 {[%clk
0:00:44]} 54. Be8 {[%clk 0:00:19.8]} 54... Rg5+ {[%clk 0:00:43.8]} 55. Kh3
{[%clk 0:00:19.6]} 55... Kf4 {[%clk 0:00:43.9]} 56. Kh4 {[%clk 0:00:15.7]} 56...
Re5 {[%clk 0:00:40.4]} 57. Bg6 {[%clk 0:00:14.9]} 57... Re1 {[%clk 0:00:40.1]}
58. Kh3 {[%clk 0:00:15.2]} 58... Kf3 {[%clk 0:00:31.5]} 59. Kh2 {[%clk
0:00:16.1]} 59... Re2+ {[%clk 0:00:26.6]} 60. Kh3 {[%clk 0:00:16.3]} 60... Rb2
{[%clk 0:00:23.2]} 61. Bf7 {[%clk 0:00:15.9]} 61... Kf4 {[%clk 0:00:21.7]} 62.
Bg6 {[%clk 0:00:15.8]} 62... Rb3+ {[%clk 0:00:20.6]} 63. Kh2 {[%clk 0:00:16.3]}
63... Kg4 {[%clk 0:00:20.2]} 64. Kg2 {[%clk 0:00:15.6]} 64... Rb2+ {[%clk
0:00:20.4]} 65. Kf1 {[%clk 0:00:15.9]} 65... Kg3 {[%clk 0:00:21.3]} 66. Ke1
{[%clk 0:00:14.1]} 66... Kf3 {[%clk 0:00:19.6]} 67. Bf7 {[%clk 0:00:13.7]} 67...
Re2+ {[%clk 0:00:17.3]} 68. Kd1 {[%clk 0:00:12.7]} 68... Rb2 {[%clk 0:00:18.2]}
69. Bg6 {[%clk 0:00:12.9]} 69... Ke3 {[%clk 0:00:18.3]} 70. Bh7 {[%clk
0:00:12.6]} 70... Rd2+ {[%clk 0:00:13.9]} 71. Kc1 {[%clk 0:00:09.9]} 71... Rh2
{[%clk 0:00:13.5]} 72. Bg6 {[%clk 0:00:10.8]} 72... Kd4 {[%clk 0:00:13.1]} 73.
Kd1 {[%clk 0:00:10.7]} 73... Kc3 {[%clk 0:00:14]} 74. Ke1 {[%clk 0:00:11.1]}
74... Kd4 {[%clk 0:00:14.3]} 75. Kf1 {[%clk 0:00:12]} 75... Ke3 {[%clk
0:00:15.2]} 76. Kg1 {[%clk 0:00:12.9]} 76... Rb2 {[%clk 0:00:15.9]} 77. Be8
{[%clk 0:00:11.5]} 77... Re2 {[%clk 0:00:13.3]} 78. Bb5 {[%clk 0:00:09.6]} 78...
Rb2 {[%clk 0:00:13.2]} 79. Be8 {[%clk 0:00:09.7]} 79... Kf3 {[%clk 0:00:09.6]}
80. Bg6 {[%clk 0:00:10.3]} 80... Rg2+ {[%clk 0:00:07.4]} 81. Kf1 {[%clk
0:00:09.5]} 81... Rb2 {[%clk 0:00:06.5]} 82. Kg1 {[%clk 0:00:09.9]} 82... Kg3
{[%clk 0:00:05.5]} 83. Kf1 {[%clk 0:00:10.3]} 83... Ra2 {[%clk 0:00:04.7]} 84.
Ke1 {[%clk 0:00:08.8]} 84... Ra1+ {[%clk 0:00:03]} 85. Ke2 {[%clk 0:00:08.8]}
85... Kg2 {[%clk 0:00:02.2]} 86. Ke3 {[%clk 0:00:09.7]} 86... Ra2 {[%clk
0:00:01.5]} 87. Kf4 {[%clk 0:00:10.6]} 87... Kf2 {[%clk 0:00:01.7]} 88. Kf5
{[%clk 0:00:10.3]} 88... Ra3 {[%clk 0:00:02.6]} 89. Kf6 {[%clk 0:00:11.1]} 89...
Ra6+ {[%clk 0:00:03.2]} 90. Kg7 {[%clk 0:00:12]} 90... Kg3 {[%clk 0:00:03.2]}
91. Kxh6 {[%clk 0:00:12.9]} 91... Kh4 {[%clk 0:00:04.1]} 92. Kg7 {[%clk
0:00:13.1]} 92... Ra5 {[%clk 0:00:05]} 93. h6 {[%clk 0:00:13.3]} 93... Ra7+
{[%clk 0:00:05.5]} 94. Bf7 {[%clk 0:00:13.5]} 94... Ra8 {[%clk 0:00:04.6]} 95.
h7 {[%clk 0:00:14.2]} 95... Kg5 {[%clk 0:00:04.4]} 96. Bg6 {[%clk 0:00:12.5]}
96... Rb8 {[%clk 0:00:02.4]} 97. Bf7 {[%clk 0:00:12.7]} 97... Ra8 {[%clk
0:00:02.5]} 98. Be6 {[%clk 0:00:10.7]} 98... Rb8 {[%clk 0:00:02.4]} 99. Bd5
{[%clk 0:00:10.7]} 99... Rc8 {[%clk 0:00:02.5]} 100. Be6 {[%clk 0:00:07.4]}
100... Rb8 {[%clk 0:00:02.8]} 101. Bf7 {[%clk 0:00:07.6]} 101... Kf5 {[%clk
0:00:02.7]} 102. Bg6+ {[%clk 0:00:05.6]} 102... Ke5 {[%clk 0:00:02.7]} 103. Bh5
{[%clk 0:00:03.5]} 103... Ke6 {[%clk 0:00:02.8]} 104. Bf7+ {[%clk 0:00:02.5]}
104... Ke5 {[%clk 0:00:03.4]} 105. Bh5 {[%clk 0:00:02.2]} 105... Ra8 {[%clk
0:00:03.9]} 106. Bf7 {[%clk 0:00:02.5]} 106... Rb8 {[%clk 0:00:04.5]} 107. Bg8
{[%clk 0:00:03.1]} 107... Kd6 {[%clk 0:00:05.4]} 108. h8=Q {[%clk 0:00:02.8]}
108... Rb7+ {[%clk 0:00:06.3]} 109. Kh6 {[%clk 0:00:03.4]} 109... Kc5 {[%clk
0:00:06.9]} 110. Qe5+ {[%clk 0:00:03.6]} 110... Kb6 {[%clk 0:00:07.2]} 111. Qd4+
{[%clk 0:00:03.8]} 111... Kc7 {[%clk 0:00:07.5]} 112. Bd5 {[%clk 0:00:04.7]}
112... Rb6+ {[%clk 0:00:08.4]} 113. Kg5 {[%clk 0:00:04.9]} 113... Rd6 {[%clk
0:00:09.3]} 114. Qc5+ {[%clk 0:00:05]} 114... Kd7 {[%clk 0:00:10.2]} 115. Kf5
{[%clk 0:00:05.7]} 115... Ke7 {[%clk 0:00:10.7]} 116. Ke5 {[%clk 0:00:05.9]}
116... Kd7 {[%clk 0:00:11.1]} 117. Qxd6+ {[%clk 0:00:06.8]} 1-0